[Event "The Schackveckan 2023: Göteborg open"]
[Site "Göteborgs schackcentrum, Vegagatan 20, Gothenburg, Sweden"]
[Date "2023.08.13"]
[Round "8.13"]
[White "Buzleta, Patrik"]
[Black "Mohammed, Safian Haj"]
[Result "0-1"]
[TimeControl "15 minutes + 5 seconds per move from move one (Round 1 - 4) / 90 minutes + 30 seconds per move from move one (Round 5 - 8)"]
[WhiteFideId "1755463"]
[BlackFideId "1729276"]
[WhiteElo "1604"]
[BlackElo "1862"]

1. d4 {[%clk 01:30:58]} {[%emt 00:00:02]} Nf6 {[%clk 01:30:34]} {[%emt
00:00:26]} 2. g3 {[%clk 01:30:55]} {[%emt 00:00:34]} c5 {[%clk 01:30:15]}
{[%emt 00:00:50]} 3. Bg2 {[%clk 01:30:11]} {[%emt 00:01:13]} cxd4 {[%clk
01:29:48]} {[%emt 00:00:57]} 4. Qxd4 {[%clk 01:30:20]} {[%emt 00:00:22]} Nc6
{[%clk 01:30:05]} {[%emt 00:00:12]} 5. Qd2 {[%clk 01:27:26]} {[%emt 00:03:24]}
e5 {[%clk 01:30:09]} {[%emt 00:00:26]} 6. a3 {[%clk 01:27:42]} {[%emt
00:00:14]} d5 {[%clk 01:30:05]} {[%emt 00:00:35]} 7. e3 {[%clk 01:27:47]}
{[%emt 00:00:24]} Be6 {[%clk 01:29:36]} {[%emt 00:00:59]} 8. Ne2 {[%clk
01:27:35]} {[%emt 00:00:42]} h5 {[%clk 01:26:41]} {[%emt 00:03:25]} 9. h3
{[%clk 01:27:49]} {[%emt 00:00:17]} Be7 {[%clk 01:26:17]} {[%emt 00:00:53]} 10.
b4 {[%clk 01:25:35]} {[%emt 00:02:44]} a6 {[%emt 00:00:20]} 11. Bb2 {[%clk
01:25:49]} {[%emt 00:00:14]} Qc7 {[%clk 01:26:07]} {[%emt 00:00:52]} 12. Nbc3
{[%clk 01:23:24]} {[%emt 00:02:55]} Rd8 {[%clk 01:25:37]} {[%emt 00:01:00]} 13.
Na2 {[%clk 01:20:47]} {[%emt 00:03:07]} Qb6 {[%clk 01:19:21]} {[%emt 00:06:46]}
14. O-O {[%clk 01:17:57]} {[%emt 00:03:20]} O-O {[%clk 01:15:06]} {[%emt
00:04:45]} 15. Rfb1 {[%clk 01:16:39]} {[%emt 00:01:47]} d4 {[%clk 01:07:21]}
{[%emt 00:08:16]} 16. e4 {[%clk 01:10:38]} {[%emt 00:06:32]} Rd7 {[%clk
01:06:36]} {[%emt 00:01:14]} 17. Nac1 {[%clk 01:09:38]} {[%emt 00:01:29]} Nh7
{[%clk 01:04:24]} {[%emt 00:02:43]} 18. Nd3 {[%clk 01:09:24]} {[%emt 00:00:44]}
Bg5 {[%clk 01:04:02]} {[%emt 00:00:52]} 19. f4 {[%clk 01:08:46]} {[%emt
00:01:08]} exf4 {[%clk 01:04:21]} {[%emt 00:00:11]} 20. gxf4 {[%clk 01:05:06]}
{[%emt 00:04:10]} Be7 {[%clk 01:04:13]} {[%emt 00:00:38]} 21. Kh1 {[%clk
01:01:49]} {[%emt 00:03:47]} f5 {[%clk 01:02:28]} {[%emt 00:02:14]} 22. Rg1
{[%clk 00:59:14]} {[%emt 00:03:05]} fxe4 {[%clk 01:01:42]} {[%emt 00:01:16]} 23.
Bxe4 {[%clk 00:59:21]} {[%emt 00:00:24]} Bxh3 {[%clk 01:01:34]} {[%emt
00:00:37]} 24. c4 {[%clk 00:54:36]} {[%emt 00:05:16]} Nf6 {[%clk 00:59:30]}
{[%emt 00:02:34]} 25. Bf3 {[%clk 00:51:40]} {[%emt 00:03:26]} Bg4 {[%clk
00:59:40]} {[%emt 00:00:20]} 26. Bg2 {[%clk 00:50:57]} {[%emt 00:01:13]} Qd8
{[%clk 00:55:21]} {[%emt 00:04:48]} 27. Ne5 {[%clk 00:46:30]} {[%emt 00:04:57]}
Nxe5 {[%clk 00:55:11]} {[%emt 00:00:42]} 28. fxe5 {[%clk 00:46:49]} {[%emt
00:00:10]} Nh7 {[%clk 00:55:13]} {[%emt 00:00:28]} 29. Nxd4 {[%clk 00:44:59]}
{[%emt 00:02:20]} Bxb4 {[%clk 00:48:44]} {[%emt 00:06:59]} 30. axb4 {[%clk
00:42:23]} {[%emt 00:03:06]} Qh4+ {[%clk 00:49:08]} {[%emt 00:00:06]} 31. Bh3
{[%clk 00:42:28]} {[%emt 00:00:24]} Rf2 {[%clk 00:47:36]} {[%emt 00:02:02]} 32.
Qxf2 {[%clk 00:39:06]} {[%emt 00:03:53]} Qxf2 {[%clk 00:47:57]} {[%emt
00:00:09]} 33. Rg2 {[%clk 00:37:27]} {[%emt 00:02:09]} Qh4 {[%clk 00:48:12]}
{[%emt 00:00:14]} 34. Rh2 {[%clk 00:35:01]} {[%emt 00:02:57]} Bxh3 {[%clk
00:48:27]} {[%emt 00:00:15]} 35. Nf3 {[%clk 00:33:43]} {[%emt 00:01:47]} Qg4
{[%clk 00:48:22]} {[%emt 00:00:35]} 36. Ne1 {[%clk 00:30:43]} {[%emt 00:03:31]}
Ng5 {[%clk 00:46:52]} {[%emt 00:02:00]} 37. Rf2 {[%clk 00:29:41]} {[%emt
00:01:31]} Qe4+ {[%clk 00:44:34]} {[%emt 00:02:48]} 38. Kh2 {[%clk 00:29:48]}
{[%emt 00:00:23]} Qe3 {[%clk 00:44:46]} {[%emt 00:00:18]} 39. Bc1 {[%clk
00:26:27]} 0-1

[Event "The Schackveckan 2023: Göteborg open"]
[Site "Göteborgs schackcentrum, Vegagatan 20, Gothenburg, Sweden"]
[Date "2023.08.13"]
[Round "8.14"]
[White "Andersson, Stig"]
[Black "Eldh, Hjalmar"]
[Result "0-1"]
[TimeControl "15 minutes + 5 seconds per move from move one (Round 1 - 4) / 90 minutes + 30 seconds per move from move one (Round 5 - 8)"]
[WhiteFideId "1731971"]
[BlackFideId "1767968"]
[WhiteElo "1811"]
[BlackElo "1738"]

1. e4 {[%clk 01:28:02]} {[%emt 00:02:57]} e5 {[%clk 01:30:50]} {[%emt
00:00:10]} 2. Nf3 {[%clk 01:28:22]} {[%emt 00:00:10]} Nc6 {[%clk 01:31:13]}
{[%emt 00:00:08]} 3. Bc4 {[%clk 01:28:43]} {[%emt 00:00:08]} Bc5 {[%clk
01:31:22]} {[%emt 00:00:20]} 4. c3 {[%clk 01:29:05]} {[%emt 00:00:09]} Nf6
{[%clk 01:31:43]} {[%emt 00:00:09]} 5. d4 {[%clk 01:29:24]} {[%emt 00:00:11]}
exd4 {[%clk 01:32:04]} {[%emt 00:00:09]} 6. e5 {[%clk 01:29:41]} {[%emt
00:00:13]} d5 {[%clk 01:29:03]} {[%emt 00:03:31]} 7. O-O {[%clk 01:23:57]}
{[%emt 00:06:14]} dxc4 {[%clk 01:24:06]} {[%emt 00:05:28]} 8. exf6 {[%clk
01:21:11]} {[%emt 00:03:15]} Qxf6 {[%clk 01:24:26]} {[%emt 00:00:11]} 9. cxd4
{[%clk 01:20:53]} {[%emt 00:00:48]} Nxd4 {[%clk 01:22:34]} {[%emt 00:02:21]} 10.
Nxd4 {[%clk 01:11:26]} {[%emt 00:09:58]} Qxd4 {[%clk 01:21:23]} {[%emt
00:01:40]} 11. Qe2+ {[%clk 01:10:36]} {[%emt 00:01:19]} Be6 {[%clk 01:20:45]}
{[%emt 00:01:08]} 12. Rd1 {[%clk 01:09:06]} {[%emt 00:02:02]} Qg4 {[%clk
01:20:35]} {[%emt 00:00:34]} 13. Qe1 {[%clk 01:05:40]} {[%emt 00:04:01]} O-O
{[%clk 01:19:18]} {[%emt 00:01:45]} 14. Nc3 {[%clk 01:03:07]} {[%emt 00:03:05]}
Rfe8 {[%clk 01:17:14]} {[%emt 00:02:33]} 15. Be3 {[%clk 01:03:23]} {[%emt
00:00:16]} Bxe3 {[%clk 01:06:05]} {[%emt 00:11:38]} 16. Qxe3 {[%clk 01:03:15]}
{[%emt 00:00:37]} Bd5 {[%clk 01:03:11]} {[%emt 00:03:21]} 17. Nxd5 {[%clk
01:01:26]} {[%emt 00:02:23]} Rxe3 {[%clk 01:03:28]} {[%emt 00:00:14]} 18. Nxe3
{[%clk 01:01:45]} {[%emt 00:00:11]} Qe6 {[%clk 01:02:28]} {[%emt 00:01:20]} 19.
a4 {[%clk 00:58:09]} {[%emt 00:04:15]} c6 {[%clk 00:57:47]} {[%emt 00:05:09]}
20. Rdc1 {[%clk 00:56:07]} {[%emt 00:02:34]} b5 {[%clk 00:56:07]} {[%emt
00:02:07]} 21. axb5 {[%clk 00:53:18]} {[%emt 00:03:22]} cxb5 {[%clk 00:55:57]}
{[%emt 00:00:39]} 22. Ra5 {[%clk 00:52:35]} {[%emt 00:01:14]} a6 {[%clk
00:53:57]} {[%emt 00:02:27]} 23. Rca1 {[%clk 00:51:14]} {[%emt 00:01:54]} Qe4
{[%clk 00:50:24]} {[%emt 00:04:01]} 24. h3 {[%clk 00:48:30]} {[%emt 00:03:16]}
h6 {[%clk 00:49:29]} {[%emt 00:01:22]} 25. Kh2 {[%clk 00:40:47]} {[%emt
00:08:16]} Qe5+ {[%emt 00:01:54]} 0-1

[Event "The Schackveckan 2023: Göteborg open"]
[Site "Göteborgs schackcentrum, Vegagatan 20, Gothenburg, Sweden"]
[Date "2023.08.13"]
[Round "8.16"]
[White "Pintaric, Felix"]
[Black "Bergholtz, Karl"]
[Result "1-0"]
[TimeControl "15 minutes + 5 seconds per move from move one (Round 1 - 4) / 90 minutes + 30 seconds per move from move one (Round 5 - 8)"]
[WhiteFideId "1776096"]
[BlackFideId "1756141"]
[WhiteElo "1483"]
[BlackElo "1521"]

1. e4 {[%clk 01:30:57]} {[%emt 00:00:02]} e5 {[%clk 01:30:56]} {[%emt
00:00:05]} 2. Nf3 {[%clk 01:31:23]} {[%emt 00:00:04]} Nc6 {[%clk 01:31:21]}
{[%emt 00:00:05]} 3. d4 {[%clk 01:31:47]} {[%emt 00:00:05]} exd4 {[%clk
01:31:47]} {[%emt 00:00:05]} 4. Bc4 {[%clk 01:32:12]} {[%emt 00:00:05]} Bb4+
{[%clk 01:31:18]} {[%emt 00:01:00]} 5. c3 {[%clk 01:32:30]} {[%emt 00:00:12]}
dxc3 {[%clk 01:31:37]} {[%emt 00:00:10]} 6. bxc3 {[%clk 01:32:56]} {[%emt
00:00:04]} Bc5 {[%clk 01:27:15]} {[%emt 00:04:53]} 7. Bxf7+ {[%clk 01:33:12]}
{[%emt 00:00:13]} Kxf7 {[%clk 01:25:26]} {[%emt 00:02:20]} 8. Qd5+ {[%clk
01:33:35]} {[%emt 00:00:06]} Ke8 {[%clk 01:25:00]} {[%emt 00:00:56]} 9. Qh5+
{[%clk 01:33:55]} {[%emt 00:00:09]} Kf8 {[%clk 01:24:19]} {[%emt 00:01:12]} 10.
Qxc5+ {[%clk 01:33:54]} {[%emt 00:00:31]} d6 {[%clk 01:24:10]} {[%emt
00:00:39]} 11. Qc4 {[%clk 01:32:25]} {[%emt 00:01:59]} Qe7 {[%clk 01:20:54]}
{[%emt 00:03:47]} 12. O-O {[%clk 01:32:08]} {[%emt 00:00:46]} Ne5 {[%clk
01:18:52]} {[%emt 00:02:32]} 13. Nxe5 {[%clk 01:32:17]} {[%emt 00:00:21]} dxe5
{[%clk 01:19:12]} {[%emt 00:00:10]} 14. Ba3 {[%clk 01:32:20]} {[%emt 00:00:27]}
1-0

[Event "The Schackveckan 2023: Göteborg open"]
[Site "Göteborgs schackcentrum, Vegagatan 20, Gothenburg, Sweden"]
[Date "2023.08.13"]
[Round "8.17"]
[White "Lindholm, Marcus"]
[Black "Johansson, Jan"]
[Result "1-0"]
[TimeControl "15 minutes + 5 seconds per move from move one (Round 1 - 4) / 90 minutes + 30 seconds per move from move one (Round 5 - 8)"]
[WhiteFideId "1743473"]
[BlackFideId "1747568"]
[WhiteElo "1708"]
[BlackElo "1694"]

1. d4 {[%clk 01:30:57]} {[%emt 00:00:03]} Nf6 {[%clk 01:30:53]} {[%emt
00:00:07]} 2. Bg5 {[%clk 01:31:20]} {[%emt 00:00:06]} e6 {[%clk 01:30:29]}
{[%emt 00:00:55]} 3. e4 {[%clk 01:31:36]} {[%emt 00:00:14]} h6 {[%clk
01:30:44]} {[%emt 00:00:15]} 4. Bxf6 {[%clk 01:31:58]} {[%emt 00:00:09]} Qxf6
{[%clk 01:30:56]} {[%emt 00:00:18]} 5. c3 {[%clk 01:32:22]} {[%emt 00:00:05]}
c5 {[%clk 01:28:25]} {[%emt 00:03:01]} 6. Nf3 {[%clk 01:32:11]} {[%emt
00:00:41]} Nc6 {[%clk 01:27:37]} {[%emt 00:01:18]} 7. d5 {[%clk 01:30:58]}
{[%emt 00:01:44]} Ne5 {[%clk 01:22:47]} {[%emt 00:05:19]} 8. Be2 {[%clk
01:30:23]} {[%emt 00:01:05]} Bd6 {[%clk 01:13:40]} {[%emt 00:09:37]} 9. O-O
{[%clk 01:27:49]} {[%emt 00:03:04]} Qf4 {[%clk 01:08:46]} {[%emt 00:05:25]} 10.
Nbd2 {[%clk 01:26:23]} {[%emt 00:01:55]} Nxf3+ {[%clk 01:08:32]} {[%emt
00:00:44]} 11. Nxf3 {[%clk 01:26:46]} {[%emt 00:00:07]} Qxe4 {[%clk 01:07:52]}
{[%emt 00:01:10]} 12. dxe6 {[%clk 01:27:07]} {[%emt 00:00:10]} dxe6 {[%clk
00:59:55]} {[%emt 00:08:26]} 13. Qxd6 {[%clk 01:24:17]} {[%emt 00:03:20]} Qc6
{[%clk 00:57:50]} {[%emt 00:02:35]} 14. Qxc6+ {[%clk 01:24:17]} {[%emt
00:00:31]} bxc6 {[%clk 00:58:05]} {[%emt 00:00:15]} 15. Ne5 {[%clk 01:23:53]}
{[%emt 00:00:53]} Bb7 {[%clk 00:58:18]} {[%emt 00:00:18]} 16. Nd3 {[%emt
00:00:35]} 1-0